fUSD/lending_fUSD_20250607
["ID","MTS","AMOUNT","RATE_DAILY","PERIOD"]
[364836588,1749267053475,-480.0,0.00027397,5]
[364836589,1749267053485,-596.48,0.00027397,5]
[364836590,1749267053495,-492.09122242,0.00027397,5]
[364836591,1749267053505,-769.38,0.00027397,5]
[364836592,1749267053516,-480.0,0.00027397,5]
[364836593,1749267053526,-151.0,0.00027397,7]
[364836594,1749267053535,-428.67987014,0.00027397,5]
[364836595,1749267053545,-480.0,0.00027397,5]
[364836596,1749267053555,-151.0,0.00027397,7]
[364836597,1749267053565,-487.15055125,0.00027397,5]
[364836598,1749267053574,-151.0,0.00027397,7]
[364836599,1749267053584,-480.0,0.00027397,5]
[364836600,1749267053594,-300.0,0.00027397,5]
[364836601,1749267053603,-480.0,0.00027397,5]
[364836602,1749267053613,-1666.49,0.00027397,5]
[364836603,1749267053622,-480.0,0.00027397,5]
[364836604,1749267053632,-480.0,0.00027397,5]
[364836605,1749267053641,-151.0,0.00027397,7]
[364836606,1749267053650,-151.0,0.00027397,7]
[364836607,1749267053660,-509.07501896,0.00027397,5]
[364836608,1749267053669,-480.0,0.00027397,5]
[364836609,1749267053679,-151.0,0.00027397,7]
[364836610,1749267053688,-480.0,0.00027397,5]
[364836611,1749267053697,-480.0,0.00027397,5]
[364836612,1749267053707,-1861.6,0.00027397,2]
[364836613,1749267053716,-480.0,0.00027397,5]
[364836614,1749267053725,-480.0,0.00027397,5]
[364836615,1749267053734,-3481.74,0.00027397,5]
[364836616,1749267053743,-155.208437,0.00027397,7]
[364836617,1749267053752,-1287.03,0.00027397,5]
[364836618,1749267053762,-480.0,0.00027397,2]
[364836619,1749267053771,-151.0,0.00027397,7]
[364836620,1749267053780,-1278.11,0.00027397,5]
[364836621,1749267053790,-485.90618444,0.00027397,5]
[364836622,1749267053799,-480.0,0.00027397,5]
[364836623,1749267053809,-1788.9,0.00027397,5]
[364836624,1749267053818,-585.0452618,0.00027397,5]
[364836625,1749267053827,-499.54,0.00027397,5]
[364836626,1749267053837,-504.49048182,0.00027397,5]
[364836627,1749267053846,-480.0,0.00027397,5]
[364836628,1749267053856,-480.0,0.00027397,5]
[364836629,1749267053865,-480.0,0.00027397,5]
[364836630,1749267053874,-1256.95,0.00027397,5]
[364836631,1749267053884,-480.0,0.00027397,5]
[364836632,1749267053893,-480.0,0.00027397,5]
[364836633,1749267053903,-481.83381128,0.00027397,5]
[364836634,1749267053912,-151.0,0.00027397,7]
[364836635,1749267053921,-1671.91,0.00027397,5]
[364836636,1749267053931,-151.0,0.00027397,7]
[364836637,1749267053940,-788.64,0.00027397,5]
[364836638,1749267053949,-151.0,0.00027397,7]
[364836639,1749267053959,-788.64,0.00027397,5]
[364836640,1749267053969,-480.0,0.00027397,5]
[364836641,1749267053979,-788.64,0.00027397,5]
[364836642,1749267053991,-788.64,0.00027397,5]
[364836643,1749267054000,-788.64,0.00027397,5]
[364836644,1749267054010,-480.0,0.00027397,5]
[364836645,1749267054020,-859.96,0.00027397,5]
[364836646,1749267054030,-788.64,0.00027397,5]
[364836647,1749267054039,-788.64,0.00027397,5]
[364836648,1749267054049,-788.64,0.00027397,5]
[364836649,1749267054059,-788.64,0.00027397,5]
[364836650,1749267054068,-11876.34,0.00027397,5]
[364836651,1749267054079,-788.64,0.00027397,5]
[364836652,1749267054088,-480.0,0.00027397,5]
[364836653,1749267054097,-5767.87,0.00027397,5]
[364836654,1749267054107,-480.0,0.00027397,5]
[364836655,1749267054116,-489.46585648,0.00027397,5]
[364836656,1749267054125,-480.0,0.00027397,5]
[364836657,1749267054135,-452.14157502,0.00027397,5]
[364836658,1749267054145,-3035.15,0.00027397,5]
[364836659,1749267054155,-151.0,0.00027397,7]
[364836660,1749267054164,-755.58,0.00027397,5]
[364836661,1749267054173,-480.0,0.00027397,5]
[364836662,1749267054183,-491.95248591,0.00027397,5]
[364836663,1749267054193,-480.0,0.00027397,5]
[364836664,1749267054203,-165.60427988,0.00027397,5]
[364836665,1749267054212,-486.81693847,0.00027397,5]
[364836666,1749267054223,-1813.84,0.00027397,5]
[364836667,1749267054233,-1581.96,0.00027397,5]
[364836668,1749267054242,-480.0,0.00027397,5]
[364836669,1749267054252,-2521.31,0.00027397,5]
[364836670,1749267054261,-1345.91,0.00027397,5]
[364836671,1749267054271,-780.25,0.00027397,5]
[364836672,1749267054281,-201.193326,0.00027397,7]
[364836673,1749267054290,-201.193326,0.00027397,7]
[364836674,1749267054299,-201.193326,0.00027397,7]
[364836675,1749267054309,-480.0,0.00027397,5]
[364836676,1749267054319,-1450.59,0.00027397,5]
[364836677,1749267054328,-480.0,0.00027397,5]
[364836678,1749267054338,-480.97249773,0.00027397,5]
[364836679,1749267054348,-480.0,0.00027397,5]
[364836680,1749267054357,-166.017389,0.00027397,7]
[364836681,1749267054367,-201.193326,0.00027397,7]
[364836682,1749267054377,-201.193326,0.00027397,7]
[364836683,1749267054387,-166.017389,0.00027397,7]
[364836684,1749267054396,-201.193326,0.00027397,7]
[364836685,1749267054405,-166.017389,0.00027397,7]
[364836686,1749267054415,-500.37678524,0.00027397,5]
[364836687,1749267054426,-732.27,0.00027397,5]
[364836688,1749267054435,-1271.75,0.00027397,5]
[364836689,1749267054445,-426.52362575,0.00027397,5]
[364836690,1749267054454,-6110.32,0.00027397,5]
[364836691,1749267054463,-480.0,0.00027397,5]
[364836692,1749267054473,-499.88405491,0.00027397,5]
[364836693,1749267054483,-961.5,0.00027397,5]
[364836694,1749267054492,-480.0,0.00027397,5]
[364836695,1749267054501,-166.017389,0.00027397,7]
[364836696,1749267054510,-480.0,0.00027397,5]
[364836697,1749267054519,-3258.93,0.00027397,5]
[364836698,1749267054529,-166.017389,0.00027397,7]
[364836699,1749267054539,-166.017389,0.00027397,7]
[364836700,1749267054548,-777.55,0.00027397,5]
[364836701,1749267054558,-480.0,0.00027397,5]
[364836702,1749267054567,-2623.17,0.00027397,5]
[364836703,1749267054577,-480.0,0.00027397,5]
[364836704,1749267054586,-420.0,0.00027397,5]
[364836705,1749267054595,-400.0,0.00027397,5]
[364836706,1749267054605,-480.0,0.00027397,5]
[364836707,1749267054614,-472.89036766,0.00027397,5]
[364836708,1749267054624,-464.75531448,0.00027397,5]
[364836709,1749267054634,-480.0,0.00027397,5]
[364836710,1749267054642,-466.89576298,0.00027397,5]
[364836711,1749267054652,-480.0,0.00027397,5]
[364836712,1749267054661,-480.0,0.00027397,5]
[364836713,1749267054671,-734.71,0.00027397,5]
[364836714,1749267054681,-1458.57,0.00027397,5]
[364836715,1749267054690,-405.99384227,0.00027397,5]
[364836716,1749267054699,-571.8,0.00027397,5]
[364836717,1749267054708,-496.98007809,0.00027397,5]
[364836718,1749267054717,-480.0,0.00027397,5]
[364836719,1749267054727,-1093.12,0.00027397,5]
[364836720,1749267054736,-855.47,0.00027397,5]
[364836721,1749267054745,-480.0,0.00027397,5]
[364836722,1749267054754,-480.0,0.00027397,5]
[364836723,1749267054763,-151.0,0.00027397,7]
[364836724,1749267054772,-151.0,0.00027397,7]
[364836725,1749267054781,-480.0,0.00027397,5]
[364836726,1749267054790,-151.0,0.00027397,7]
[364836727,1749267054799,-480.0,0.00027397,5]
[364836728,1749267054809,-480.0,0.00027397,5]
[364836729,1749267054818,-480.0,0.00027397,5]
[364836730,1749267054827,-1675.33,0.00027397,5]
[364836731,1749267054836,-194.836,0.00027397,7]
[364836732,1749267054845,-1219.17,0.00027397,5]
[364836733,1749267054854,-495.7883324,0.00027397,5]
[364836734,1749267054864,-480.0,0.00027397,5]
[364836735,1749267054875,-480.0,0.00027397,5]
[364836736,1749267054886,-491.6239372,0.00027397,5]
[364836737,1749267054896,-480.0,0.00027397,5]
[364836738,1749267054906,-480.0,0.00027397,5]
[364836739,1749267054916,-480.0,0.00027397,5]
[364836740,1749267054926,-480.0,0.00027397,5]
[364836741,1749267054936,-5339.54,0.00027397,5]
[364836742,1749267054946,-481.04414073,0.00027397,5]
[364836743,1749267054955,-1143.16,0.00027397,5]
[364836744,1749267054966,-1392.55,0.00027397,5]
[364836745,1749267054975,-480.0,0.00027397,5]
[364836746,1749267054988,-480.0,0.00027397,5]
[364836747,1749267054999,-480.0,0.00027397,5]
[364836748,1749267055009,-480.0,0.00027397,5]
[364836749,1749267055020,-2115.0,0.00027397,5]
[364836750,1749267055032,-3704.48,0.00027397,5]
[364836751,1749267055042,-151.0,0.00027397,7]
[364836752,1749267055052,-480.0,0.00027397,5]
[364836753,1749267055064,-152.937236,0.00027397,7]
[364836754,1749267055075,-3855.85,0.00027397,5]
[364836755,1749267055086,-480.0,0.00027397,5]
[364836756,1749267055098,-480.0,0.00027397,5]
[364836757,1749267055108,-1529.93,0.00027397,5]
[364836758,1749267055117,-488.00690606,0.00027397,5]
[364836759,1749267055128,-480.0,0.00027397,5]
[364836760,1749267055138,-151.0,0.00027397,7]
[364836761,1749267055149,-151.0,0.00027397,7]
[364836762,1749267055159,-209.089398,0.00027397,7]
[364836763,1749267055168,-495.84295046,0.00027397,5]
[364836764,1749267055178,-749.45,0.00027397,5]
[364836765,1749267055187,-480.0,0.00027397,5]
[364836766,1749267055196,-480.0,0.00027397,5]
[364836767,1749267055207,-151.0,0.00027397,7]
[364836768,1749267055216,-152.724614,0.00027397,7]
[364836769,1749267055226,-480.0,0.00027397,5]
[364836770,1749267055235,-480.0,0.00027397,5]
[364836771,1749267055244,-357.43525227,0.00027397,5]
[364836772,1749267055253,-480.0,0.00027397,5]
[364836773,1749267055264,-1927.59,0.00027397,5]
[364836774,1749267055275,-480.0,0.00027397,5]
[364836775,1749267055286,-480.0,0.00027397,5]
[364836776,1749267055295,-480.0,0.00027397,5]
[364836777,1749267055306,-480.0,0.00027397,5]
[364836778,1749267055315,-519.12495234,0.00027397,5]
[364836779,1749267055324,-716.74,0.00027397,5]
[364836780,1749267055335,-737.46,0.00027397,5]
[364836781,1749267055347,-480.0,0.00027397,5]
[364836782,1749267055356,-435.19553468,0.00027397,5]
[364836783,1749267055366,-1806.88,0.00027397,5]
[364836784,1749267055375,-687.89,0.00027397,5]
[364836785,1749267055385,-480.0,0.00027397,5]
[364836786,1749267055394,-296.693264,0.00027397,7]
[364836787,1749267055404,-296.693264,0.00027397,7]
[364836788,1749267055413,-296.693264,0.00027397,7]
[364836789,1749267055423,-1753.76,0.00027397,5]
[364836790,1749267055432,-151.0,0.00027397,7]
[364836791,1749267055444,-151.0,0.00027397,7]
[364836792,1749267055454,-480.0,0.00027397,5]
[364836793,1749267055465,-151.0,0.00027397,7]
[364836794,1749267055475,-524.15897064,0.00027397,5]
[364836795,1749267055484,-494.08,0.00027397,5]
[364836796,1749267055493,-296.693264,0.00027397,7]
[364836797,1749267055503,-296.693264,0.00027397,7]
[364836798,1749267055512,-296.693264,0.00027397,7]
[364836799,1749267055522,-495.25761186,0.00027397,5]
[364836800,1749267055531,-1122.69,0.00027397,5]
[364836801,1749267055540,-480.0,0.00027397,5]
[364836802,1749267055549,-480.14116459,0.00027397,5]
[364836803,1749267055559,-493.61106545,0.00027397,5]
[364836804,1749267055569,-480.0,0.00027397,5]
[364836805,1749267055579,-12535.73,0.00027397,5]
[364836806,1749267055589,-483.00812327,0.00027397,5]
[364836807,1749267055598,-1414.74,0.00027397,5]
[364836808,1749267055609,-501.57789469,0.00027397,5]
[364836809,1749267055618,-385.46913452,0.00027397,5]
[364836810,1749267055629,-10413.24,0.00027397,5]
[364836811,1749267055638,-496.88810002,0.00027397,5]
[364836812,1749267055648,-480.0,0.00027397,5]
[364836813,1749267055657,-428.43001528,0.00027397,5]
[364836814,1749267055667,-543.19172869,0.00027397,5]
[364836815,1749267055677,-480.0,0.00027397,5]
[364836816,1749267055687,-998.9,0.00027397,5]
[364836817,1749267055696,-151.0,0.00027397,7]
[364836818,1749267055706,-151.0,0.00027397,7]
[364836819,1749267055715,-521.13,0.00027397,5]
[364836820,1749267055725,-162.719513,0.00027397,7]
[364836821,1749267055735,-480.0,0.00027397,5]
[364836822,1749267055745,-1993.68,0.00027397,5]
[364836823,1749267055755,-518.65,0.00027397,5]
[364836824,1749267055764,-500.0,0.00027397,5]
[364836825,1749267055774,-500.0,0.00027397,5]
[364836826,1749267055784,-500.0,0.00027397,5]
[364836827,1749267055794,-500.0,0.00027397,5]
[364836828,1749267055804,-480.0,0.00027397,5]
[364836829,1749267055814,-4322.98,0.00027397,5]
[364836830,1749267055824,-500.0,0.00027397,5]
[364836831,1749267055834,-500.0,0.00027397,5]
[364836832,1749267055843,-500.0,0.00027397,5]
[364836833,1749267055853,-500.0,0.00027397,5]
[364836834,1749267055862,-355.82049876,0.00027397,5]
[364836835,1749267055872,-500.0,0.00027397,5]
[364836836,1749267055882,-500.0,0.00027397,5]
[364836837,1749267055892,-500.0,0.00027397,5]
[364836838,1749267055901,-500.0,0.00027397,5]
[364836839,1749267055911,-1625.54,0.00027397,5]
[364836840,1749267055922,-633.62,0.00027397,5]
[364836841,1749267055932,-482.93172348,0.00027397,5]
[364836842,1749267055941,-480.0,0.00027397,5]
[364836843,1749267055951,-480.0,0.00027397,5]
[364836844,1749267055963,-151.0,0.00027397,7]
[364836845,1749267055974,-480.0,0.00027397,5]
[364836846,1749267055986,-151.0,0.00027397,7]
[364836847,1749267055996,-757.09,0.00027397,5]
[364836848,1749267056006,-151.0,0.00027397,7]
[364836849,1749267056015,-151.0,0.00027397,7]
[364836850,1749267056027,-151.0,0.00027397,7]
[364836851,1749267056036,-1721.85,0.00027397,5]
[364836852,1749267056046,-480.0,0.00027397,5]
[364836853,1749267056056,-513.52,0.00027397,5]
[364836854,1749267056067,-427.63162811,0.00027397,5]
[364836855,1749267056079,-2227.22,0.00027397,5]
[364836856,1749267056089,-480.0,0.00027397,5]
[364836857,1749267056098,-1423.351715,0.00027397,7]
[364836858,1749267056108,-151.0,0.00027397,7]
[364836859,1749267056118,-1423.351715,0.00027397,7]
[364836860,1749267056128,-488.9018027,0.00027397,5]
[364836861,1749267056139,-151.0,0.00027397,7]
[364836862,1749267056149,-151.0,0.00027397,7]
[364836863,1749267056159,-1423.351715,0.00027397,7]
[364836864,1749267056168,-151.0,0.00027397,7]
[364836865,1749267056178,-151.0,0.00027397,7]
[364836866,1749267056188,-151.0,0.00027397,7]
[364836867,1749267056197,-151.0,0.00027397,7]
[364836868,1749267056207,-151.0,0.00027397,7]
[364836869,1749267056217,-1423.351715,0.00027397,7]
[364836870,1749267056228,-480.0,0.00027397,5]
[364836871,1749267056238,-1423.351715,0.00027397,7]
[364836872,1749267056247,-1423.351715,0.00027397,7]
[364836873,1749267056257,-151.0,0.00027397,7]
[364836874,1749267056267,-151.0,0.00027397,7]
[364836875,1749267056277,-170.424014,0.00027397,7]
[364836876,1749267056287,-483.40386196,0.00027397,5]
[364836877,1749267056296,-1444.88,0.00027397,5]
[364836878,1749267056306,-719.02,0.00027397,5]
[364836879,1749267056316,-480.0,0.00027397,5]
[364836880,1749267056326,-665.9,0.00027397,5]
[364836881,1749267056336,-658.17,0.00027397,5]
[364836882,1749267056347,-3612.7,0.00027397,5]
[364836883,1749267056357,-480.0,0.00027397,5]
[364836884,1749267056367,-920.44,0.00027397,5]
[364836885,1749267056378,-920.44,0.00027397,5]
[364836886,1749267056387,-920.44,0.00027397,5]
[364836887,1749267056398,-920.44,0.00027397,5]
[364836888,1749267056408,-920.44,0.00027397,5]
[364836889,1749267056418,-920.44,0.00027397,5]
[364836890,1749267056428,-920.44,0.00027397,5]
[364836891,1749267056438,-1491.43,0.00027397,5]
[364836892,1749267056448,-470.76019747,0.00027397,5]
[364836893,1749267056459,-920.44,0.00027397,5]
[364836894,1749267056468,-920.44,0.00027397,5]
[364836895,1749267056479,-920.44,0.00027397,5]
[364836896,1749267056489,-920.44,0.00027397,5]
[364836897,1749267056499,-920.44,0.00027397,5]
[364836898,1749267056510,-1125.11,0.00027397,5]
[364836899,1749267056520,-3750.22,0.00027397,5]
[364836900,1749267056530,-480.0,0.00027397,5]
[364836901,1749267056541,-503.26544929,0.00027397,5]
[364836902,1749267056551,-427.50474168,0.00027397,5]
[364836903,1749267056561,-480.0,0.00027397,5]
[364836904,1749267056572,-551.18949792,0.00027397,5]
[364836905,1749267056582,-658.72,0.00027397,5]
[364836906,1749267056592,-151.85797,0.00027397,7]
[364836907,1749267056602,-509.4296095,0.00027397,5]
[364836908,1749267056612,-697.95,0.00027397,5]
[364836909,1749267056622,-480.0,0.00027397,5]
[364836910,1749267056632,-151.0,0.00027397,7]
[364836911,1749267056642,-151.0,0.00027397,7]
[364836912,1749267056652,-480.0,0.00027397,5]
[364836913,1749267056662,-590.0,0.00027397,5]
[364836914,1749267056672,-480.0,0.00027397,5]
[364836915,1749267056682,-151.0,0.00027397,7]
[364836916,1749267056692,-480.0,0.00027397,2]
[364836917,1749267056702,-480.0,0.00027397,5]
[364836918,1749267056712,-1066.78,0.00027397,5]
[364836919,1749267056723,-480.0,0.00027397,5]
[364836920,1749267056733,-1440.45,0.00027397,5]
[364836921,1749267056744,-364.18554783,0.00027397,3]
[364836922,1749267056754,-151.0,0.00027397,7]
[364836923,1749267056765,-151.0,0.00027397,7]
[364836924,1749267056775,-151.0,0.00027397,7]
[364836925,1749267056785,-151.0,0.00027397,7]
[364836926,1749267056796,-151.0,0.00027397,7]
[364836927,1749267056806,-480.0,0.00027397,5]
[364836928,1749267056816,-16410.82,0.00027397,5]
[364836929,1749267056826,-2031.28,0.00027397,5]
[364836930,1749267056837,-480.0,0.00027397,5]
[364836931,1749267056847,-151.0,0.00027397,7]
[364836932,1749267056857,-480.0,0.00027397,5]
[364836933,1749267056866,-480.0,0.00027397,5]
[364836934,1749267056877,-480.0,0.00027397,5]
[364836935,1749267056886,-151.0,0.00027397,7]
[364836936,1749267056896,-480.6584502,0.00027397,5]
[364836937,1749267056906,-1739.86,0.00027397,5]
[364836938,1749267056916,-485.14824123,0.00027397,5]
[364836939,1749267056926,-480.0,0.00027397,5]
[364836940,1749267056936,-480.0,0.00027397,5]
[364836941,1749267056946,-241.400042,0.00027397,7]
[364836942,1749267056956,-241.400042,0.00027397,7]
[364836943,1749267056966,-241.400042,0.00027397,7]
[364836944,1749267056977,-871.81,0.00027397,5]
[364836945,1749267056991,-925.02,0.00027397,5]
[364836946,1749267057001,-642.18,0.00027397,5]
[364836947,1749267057011,-480.0,0.00027397,5]
[364836948,1749267057022,-480.0,0.00027397,5]
[364836949,1749267057034,-492.1087559,0.00027397,5]
[364836950,1749267057044,-241.400042,0.00027397,7]
[364836951,1749267057056,-480.0,0.00027397,5]
[364836952,1749267057067,-241.400042,0.00027397,7]
[364836953,1749267057077,-241.400042,0.00027397,7]
[364836954,1749267057089,-3452.23,0.00027397,5]
[364836955,1749267057099,-1447.7,0.00027397,5]
[364836956,1749267057109,-980.64,0.00027397,5]
[364836957,1749267057120,-480.0,0.00027397,5]
[364836958,1749267057131,-1182.54,0.00027397,5]
[364836959,1749267057141,-480.0,0.00027397,5]
[364836960,1749267057152,-480.0,0.00027397,5]
[364836961,1749267057163,-672.79,0.00027397,5]
[364836962,1749267057173,-480.0,0.00027397,5]
[364836963,1749267057183,-480.0,0.00027397,5]
[364836964,1749267057194,-480.0,0.00027397,5]
[364836965,1749267057205,-151.0,0.00027397,7]
[364836966,1749267057215,-1741.11,0.00027397,5]
[364836967,1749267057226,-502.82610311,0.00027397,5]
[364836968,1749267057235,-151.0,0.00027397,7]
[364836969,1749267057246,-480.0,0.00027397,5]
[364836970,1749267057256,-480.0,0.00027397,5]
[364836971,1749267057267,-1748.83,0.00027397,5]
[364836972,1749267057277,-490.36658162,0.00027397,5]
[364836973,1749267057288,-480.0,0.00027397,5]
[364836974,1749267057298,-2996.31,0.00027397,5]
[364836975,1749267057309,-151.0,0.00027397,7]
[364836976,1749267057319,-151.0,0.00027397,7]
[364836977,1749267057330,-816.17,0.00027397,5]
[364836978,1749267057342,-151.0,0.00027397,7]
[364836979,1749267057354,-480.0,0.00027397,5]
[364836980,1749267057364,-2163.97,0.00027397,5]
[364836981,1749267057374,-480.0,0.00027397,5]
[364836982,1749267057385,-715.95,0.00027397,5]
[364836983,1749267057395,-494.61358872,0.00027397,5]
[364836984,1749267057405,-480.0,0.00027397,5]
[364836985,1749267057415,-672.93,0.00027397,5]
[364836986,1749267057426,-480.0,0.00027397,5]
[364836987,1749267057436,-480.0,0.00027397,5]
[364836988,1749267057446,-151.0,0.00027397,7]
[364836989,1749267057456,-480.0,0.00027397,5]
[364836990,1749267057467,-1892.42,0.00027397,5]
[364836991,1749267057479,-151.0,0.00027397,7]
[364836992,1749267057490,-483.04,0.00027397,2]
[364836993,1749267057501,-480.0,0.00027397,5]
[364836994,1749267057511,-1729.01,0.00027397,5]
[364836995,1749267057522,-480.0,0.00027397,5]
[364836996,1749267057532,-4307.55,0.00027397,5]
[364836997,1749267057543,-480.0,0.00027397,5]
[364836998,1749267057553,-480.0,0.00027397,5]
[364836999,1749267057564,-480.0,0.00027397,5]
[364837000,1749267057574,-480.0,0.00027397,5]
[364837001,1749267057584,-240.02156084,0.00027397,5]
[364837002,1749267057594,-674.63,0.00027397,5]
[364837003,1749267057605,-151.0,0.00027397,7]
[364837004,1749267057616,-151.0,0.00027397,7]
[364837005,1749267057627,-488.49537533,0.00027397,5]
[364837006,1749267057637,-480.0,0.00027397,5]
[364837007,1749267057647,-480.0,0.00027397,5]
[364837008,1749267057658,-455.65952385,0.00027397,5]
[364837009,1749267057668,-480.0,0.00027397,2]
[364837010,1749267057678,-483.27311345,0.00027397,5]
[364837011,1749267057689,-151.0,0.00027397,7]
[364837012,1749267057702,-480.0,0.00027397,5]
[364837013,1749267057712,-151.0,0.00027397,7]
[364837014,1749267057723,-480.0,0.00027397,5]
[364837015,1749267057733,-891.05,0.00027397,5]
[364837016,1749267057744,-490.86607536,0.00027397,5]
[364837017,1749267057754,-832.77,0.00027397,5]
[364837018,1749267057764,-1720.22,0.00027397,5]
[364837019,1749267057776,-897.55,0.00027397,5]
[364837020,1749267057786,-3111.73,0.00027397,5]
[364837021,1749267057800,-629.18,0.00027397,5]
[364837022,1749267057811,-276.17416622,0.00027397,5]
[364837023,1749267057821,-495.21795497,0.00027397,5]
[364837024,1749267057834,-433.47910582,0.00027397,5]
[364837025,1749267057845,-480.0,0.00027397,5]
[364837026,1749267057857,-492.84153575,0.00027397,5]
[364837027,1749267057868,-480.0,0.00027397,5]
[364837028,1749267057881,-350.5594619,0.00027397,5]
[364837029,1749267058119,-487.22014676,0.00027397,5]
[364837030,1749267058129,-487.54544254,0.00027397,5]
[364837031,1749267058139,-1505.03,0.00027397,5]
[364837032,1749267058149,-469.80536693,0.00027397,5]
[364837033,1749267058159,-480.0,0.00027397,5]
[364837034,1749267058169,-515.42095429,0.00027397,5]
[364837035,1749267058178,-1150.03,0.00027397,5]
[364837036,1749267058188,-480.0,0.00027397,5]
[364837037,1749267058198,-248.44864722,0.00027397,5]
[364837038,1749267058207,-480.08528522,0.00027397,2]
[364837039,1749267058217,-488.01892616,0.00027397,5]
[364837040,1749267058228,-480.0,0.00027397,5]
[364837041,1749267058238,-1925.21,0.00027397,5]
[364837042,1749267058247,-5617.32,0.00027397,5]
[364837043,1749267058257,-480.0,0.00027397,5]
[364837044,1749267058267,-483.02628075,0.00027397,5]
[364837045,1749267058276,-831.81,0.00027397,5]
[364837046,1749267058286,-480.0,0.00027397,5]
[364837047,1749267058295,-151.0,0.00027397,7]
[364837048,1749267058306,-151.0,0.00027397,7]
[364837049,1749267058316,-151.0,0.00027397,7]
[364837050,1749267058325,-150.0,0.00027397,2]
[364837051,1749267058335,-4670.27,0.00027397,2]
[364837052,1749267058346,-700.0,0.00027397,2]
[364837053,1749267058356,-300.0,0.00027397,2]
[364837054,1749267058365,-159.83716111,0.00027397,5]
[364837055,1749267058375,-288.65538369,0.00027397,5]
[364837056,1749267058385,-617.50445255,0.00027398,2]
[364837057,1749267058395,-1000.0,0.00027399,2]
[364837058,1749267058404,-151.0,0.000274,7]
[364837059,1749267058414,-151.0,0.000274,7]
[364837060,1749267058424,-401.61344742,0.000274,2]
[364837061,1749267058434,-988.0,0.000274,2]
[364837062,1749267058443,-526.0,0.000274,2]
[364837063,1749267058453,-768.0,0.000274,2]
[364837064,1749267058463,-237.0,0.000274,2]
[364837065,1749267058474,-1000.0,0.000274,2]
[364837066,1749267058485,-376.0,0.000274,2]
[364837067,1749267058495,-215.0738,0.00027403,2]
[364837068,1749267058505,-150.0,0.00027405,2]
[364837069,1749267058515,-150.0,0.00027406,2]
[364837070,1749267058526,-1000.0,0.00027407,2]
[364837071,1749267058536,-160.87168382,0.00027409,2]
[364837072,1749267058546,-11375.26523794,0.0002741,2]
[364837073,1749267058556,-150.0,0.00027412,2]
[364837074,1749267058566,-150.0,0.00027416,2]
[364837075,1749267058576,-150.0,0.0002742,2]
[364837076,1749267058587,-150.0,0.00027422,2]
[364837077,1749267058598,-150.0,0.00027427,2]
[364837078,1749267058608,-150.0,0.00027427,2]
[364837079,1749267058618,-150.0,0.0002743,2]
[364837080,1749267058628,-150.0,0.00027431,2]
[364837081,1749267058638,-200.0,0.00027432,2]
[364837082,1749267058647,-150.0,0.00027432,2]
[364837083,1749267058657,-150.0,0.00027437,2]
[364837084,1749267058667,-150.0,0.00027437,2]
[364837085,1749267058676,-150.0,0.00027438,2]
[364837086,1749267058686,-150.0,0.00027438,2]
[364837087,1749267058695,-150.0,0.00027444,2]